bitfinex/quotes_SOLUSD_20250920
["timestamp","ask_amount","ask_price","bid_price","bid_amount"]
[1758338832572,0.14216157,238.61,238.59,0.66]
[1758338832777,0.14216157,238.61,238.6,31.92]
[1758338833180,30.14216157,238.61,238.6,31.92]
[1758338833682,30.14216157,238.61,238.6,32.58]
[1758338835169,30.14216157,238.61,238.6,31.92]
[1758338839294,30.14216157,238.61,238.6,32.58]
[1758338839770,30.14216157,238.61,238.6,46.17559401]
[1758338839970,30.14216157,238.61,238.6,52.33635859]
[1758338840995,31.34216157,238.62,238.6,52.33635859]
[1758338841290,31.34216157,238.62,238.61,4.85093918]
[1758338841502,61.34216157,238.62,238.61,4.85093918]
[1758338842413,31.34216157,238.62,238.61,4.85093918]
[1758338843275,0.14216157,238.64,238.61,4.85093918]
[1758338843599,34.17012681,238.63,238.62,32.58]
[1758338843786,32.97012681,238.63,238.62,32.58]
[1758338843999,32.97012681,238.63,238.62,36.77076355]
[1758338845481,30.14216157,238.63,238.62,50.36635756]
[1758338845703,0.14216157,238.63,238.62,50.36635756]
[1758338846713,0.66,238.71,238.63,13.59559401]
[1758338847008,31.2,238.67,238.64,32.59]
[1758338847192,2.82805862,238.66,238.65,0.67]
[1758338847504,0.14216157,238.65,238.64,45.51559401]
[1758338847894,0.14216157,238.65,238.64,49.70600634]
[1758338850806,0.14216157,238.65,238.64,50.37600634]
[1758338860511,0.14216157,238.68,238.64,50.37600634]
[1758338860714,0.14216157,238.65,238.64,49.70600634]
[1758338861214,0.14216157,238.65,238.64,50.37600634]
[1758338862823,0.14216157,238.68,238.64,50.37600634]
[1758338863116,2.96749568,238.68,238.65,4.86013014]
[1758338863303,31.34216157,238.67,238.66,31.9]
[1758338863804,0.14216157,238.67,238.66,31.9]
[1758338864004,0.80216157,238.67,238.66,31.9]
[1758338864819,0.14216157,238.67,238.66,31.9]
[1758338866205,0.80216157,238.67,238.66,31.9]
[1758338868424,3.62715136,238.67,238.66,31.9]
[1758338869019,2.96715136,238.67,238.66,31.9]
[1758338871319,0.14216157,238.66,238.64,13.59559401]
[1758338871526,0.14216157,238.66,238.65,31.9]
[1758338871827,0.80216157,238.66,238.65,31.9]
[1758338872203,0.14216157,238.66,238.65,31.9]
[1758338878823,31.34216157,238.66,238.63,63.0]
[1758338879132,1.40215003,238.64,238.63,94.9]
[1758338879328,36.10849826,238.64,238.63,94.9]
[1758338879828,48.70904008,238.64,238.63,31.9]
[1758338880339,48.70904008,238.64,238.62,31.9]
[1758338880517,0.84216157,238.63,238.62,31.9]
[1758338880717,3.66883682,238.63,238.62,31.9]
[1758338880920,16.26937864,238.63,238.62,31.9]
[1758338881124,13.44270339,238.63,238.62,31.9]
[1758338881438,16.26945971,238.63,238.62,31.9]
[1758338881638,15.56945971,238.63,238.62,31.9]
[1758338881839,19.76004764,238.63,238.62,31.9]
[1758338888153,18.19327978,238.63,238.62,31.9]
[1758338888444,19.75994998,238.63,238.62,31.9]
[1758338888627,21.71993844,238.63,238.62,31.9]
[1758338888833,0.14216157,238.59,238.55,63.65]
[1758338889040,0.84216157,238.59,238.56,31.9]
[1758338889422,0.14216157,238.57,238.56,32.55]
[1758338890146,12.74535017,238.57,238.56,32.55]
[1758338902849,12.74535017,238.57,238.56,31.9]
[1758338903747,12.74535017,238.57,238.56,32.55]
[1758338904160,0.14216157,238.57,238.56,32.55]
[1758338904332,0.14216157,238.57,238.56,36.74181757]
[1758338905837,0.14216157,238.57,238.56,50.33741158]
[1758338906053,0.14216157,238.57,238.56,51.59740004]
[1758338906355,0.14216157,238.59,238.56,51.59740004]
[1758338906548,0.14216157,238.58,238.57,1.94998846]
[1758338906745,0.14216157,238.58,238.57,33.86998846]
[1758338906933,61.34216157,238.58,238.57,33.86998846]
[1758338907333,30.14216157,238.58,238.57,47.46558247]
[1758338907734,30.14216157,238.58,238.57,51.65722433]
[1758338909044,0.14216157,238.58,238.57,51.65722433]
[1758338918156,0.14216157,238.58,238.57,114.65722433]
[1758338920782,0.14216157,238.58,238.57,114.94154747]
[1758338922058,0.14216157,238.58,238.57,114.25154747]
[1758338922650,0.14216157,238.58,238.57,112.99155901]
[1758338922951,0.14216157,238.58,238.57,112.70723587]
[1758338923575,0.80216157,238.58,238.57,94.92]
[1758338924273,0.80216157,238.58,238.57,31.92]
[1758338924654,30.80216157,238.58,238.57,31.92]
[1758338925671,30.80216157,238.58,238.57,36.11164186]
[1758338926451,30.14216157,238.58,238.57,36.80164186]
[1758338926658,0.14216157,238.58,238.57,36.11164186]
[1758338927373,0.80216157,238.58,238.57,31.92]
[1758338928161,0.80216157,238.58,238.57,36.11164186]
[1758338928360,0.80216157,238.58,238.57,31.92]
[1758338928987,31.2,238.56,238.55,31.92]
[1758338929278,0.14216157,238.55,238.54,31.92]
[1758338929476,3.62701849,238.55,238.54,31.92]
[1758338929879,16.2317957,238.55,238.54,31.92]
[1758338930063,13.40693878,238.55,238.54,31.92]
[1758338930454,43.40693878,238.55,238.54,31.92]
[1758338931279,48.2007796,238.55,238.54,31.92]
[1758338931483,45.37713755,238.55,238.54,31.92]
[1758338932358,43.40693878,238.55,238.54,31.92]
[1758338933754,49.56913084,238.55,238.51,0.1]
[1758338933958,33.31236034,238.52,238.51,0.1]
[1758338934156,31.34216157,238.52,238.51,32.02]
[1758338934379,46.57872656,238.52,238.51,32.02]
[1758338934984,44.60852779,238.52,238.51,32.02]
[1758338935184,44.60852779,238.52,238.51,0.1]
[1758338935484,74.60852779,238.52,238.51,32.02]
[1758338936067,63.97236034,238.52,238.51,0.1]
[1758338936364,76.57978611,238.52,238.51,0.1]
[1758338936782,83.59114967,238.52,238.51,0.1]
[1758338940379,80.77230665,238.52,238.51,0.1]
[1758338941285,83.5872612,238.52,238.51,0.1]
[1758338941488,80.77230665,238.52,238.51,0.1]
[1758338943070,73.94958734,238.52,238.51,0.1]
[1758338943266,80.77230665,238.52,238.51,0.1]
[1758338945378,83.58332397,238.52,238.51,0.1]
[1758338948497,80.77230665,238.52,238.51,0.1]
[1758338963910,83.58067221,238.52,238.51,0.1]
[1758338967209,83.58067221,238.52,238.47,0.7]
[1758338967210,0.14216157,238.51,238.47,0.7]
[1758338967393,33.31236034,238.48,238.47,0.7]
[1758338967990,2.11236034,238.48,238.47,0.7]
[1758338968511,3.7937744,238.48,238.47,0.7]
[1758338969004,3.7937744,238.48,238.46,0.9]
[1758338969005,0.14216157,238.47,238.46,0.9]
[1758338969301,6.30575992,238.47,238.46,0.9]
[1758338970015,36.30575992,238.47,238.46,0.9]
[1758338970201,37.98717399,238.47,238.46,0.9]
[1758338973220,40.80549718,238.47,238.46,0.9]
[1758338976525,31.82357564,238.47,238.46,0.9]
[1758338976703,63.02357564,238.47,238.46,0.9]
[1758338977102,65.84484519,238.47,238.46,0.9]
[1758338980324,63.02357564,238.47,238.46,0.9]
[1758338980625,63.02357564,238.47,238.46,5.09357544]
[1758338980818,63.02357564,238.47,238.46,0.9]
[1758338981317,63.02357564,238.47,238.46,5.09357544]
[1758338981520,61.34216157,238.47,238.46,5.09357544]
[1758338982729,61.34216157,238.47,238.46,0.9]
[1758338983315,31.34216157,238.47,238.46,0.9]
[1758338984726,61.34216157,238.47,238.46,0.9]
[1758338986518,65.73588279,238.47,238.46,0.9]
[1758338988329,35.73588279,238.47,238.46,0.9]
[1758338991328,65.73588279,238.47,238.46,5.09357544]
[1758338991530,35.73588279,238.47,238.46,5.09357544]
[1758338993327,35.73588279,238.47,238.46,0.9]
[1758338994432,38.56276734,238.47,238.46,0.9]
[1758338996531,68.56276734,238.47,238.46,0.9]
[1758338997431,68.56276734,238.47,238.46,5.09357544]
[1758338998138,65.73588279,238.47,238.46,5.09357544]
[1758338999336,35.73588279,238.47,238.46,5.09357544]
[1758339000222,35.73588279,238.47,238.46,0.9]
[1758339000425,39.82532286,238.47,238.46,0.2]
[1758339002341,69.82532286,238.47,238.46,0.2]
[1758339002644,70.49532286,238.47,238.46,0.2]
[1758339002833,74.68872244,238.47,238.46,0.2]
[1758339004935,74.01872244,238.47,238.46,0.2]
[1758339006243,74.68872244,238.47,238.46,0.2]
[1758339006433,70.49532286,238.47,238.46,0.2]
[1758339009247,74.68872244,238.47,238.46,0.2]
[1758339013722,37.36327422,238.47,238.46,0.2]
[1758339014048,38.62532286,238.47,238.46,0.2]
[1758339019556,8.62532286,238.47,238.46,0.2]
[1758339021351,7.36327422,238.47,238.46,0.88]
[1758339022754,37.36327422,238.47,238.46,0.88]
[1758339027660,37.36327422,238.47,238.46,5.07357544]
[1758339027860,30.0,238.47,238.46,18.66916945]
[1758339028078,32.46204864,238.52,238.46,18.66916945]
[1758339028267,0.14216157,238.48,238.47,32.61]
[1758339028440,30.14216157,238.48,238.47,32.61]
[1758339029059,0.14216157,238.48,238.47,32.61]
[1758339029362,0.14216157,238.48,238.47,46.20559401]
[1758339029762,0.14216157,238.48,238.47,50.39899359]
[1758339030160,12.74905754,238.5,238.47,50.39899359]
[1758339030338,12.74905754,238.5,238.48,0.69]
[1758339030659,12.74905754,238.5,238.49,13.59559401]
[1758339030862,12.74905754,238.5,238.49,14.28559401]
[1758339031050,0.14216157,238.5,238.49,14.28559401]
[1758339032066,0.14216157,238.5,238.49,18.47864193]
[1758339032943,0.14216157,238.51,238.49,18.47864193]
[1758339033153,0.14216157,238.51,238.5,36.80287211]
[1758339035588,0.14216157,238.51,238.5,31.92]
[1758339035867,0.14216157,238.51,238.5,36.11287211]
[1758339036248,0.14216157,238.52,238.5,36.11287211]
[1758339036767,12.74799807,238.52,238.5,36.11287211]
[1758339037349,0.69,238.51,238.49,13.59559401]
[1758339037555,0.83216157,238.51,238.5,31.92]
[1758339037855,0.14216157,238.5,238.48,4.19308097]
[1758339038172,0.14216157,238.5,238.49,31.92]
[1758339038576,12.74799807,238.5,238.49,31.92]
[1758339039971,3.51551234,238.6,238.5,13.59559401]
[1758339040183,2.82471683,238.59,238.52,15.14196579]
[1758339040348,12.60477721,238.55,238.54,13.87991715]
[1758339040661,1.26204864,238.59,238.54,46.52991715]
[1758339040862,12.60265916,238.59,238.55,0.69]
[1758339041172,0.14216157,238.58,238.56,31.96]
[1758339041388,14.5547078,238.59,238.56,31.96]
[1758339041556,0.14216157,238.58,238.56,31.96]
[1758339041877,12.74482073,238.58,238.56,31.96]
[1758339043277,12.74482073,238.58,238.56,32.65]
[1758339044874,12.74482073,238.58,238.56,31.96]
[1758339045662,12.74482073,238.58,238.56,36.1518135]
[1758339046061,12.74482073,238.58,238.56,36.8418135]
[1758339049166,12.74482073,238.58,238.57,0.69]
[1758339049779,12.74482073,238.58,238.56,36.1518135]
[1758339049990,12.74482073,238.58,238.56,36.8418135]
[1758339050286,12.74482073,238.58,238.56,32.65]
[1758339050657,12.74482073,238.58,238.57,0.69]
[1758339050862,0.14216157,238.6,238.57,0.69]
[1758339051064,12.74482074,238.59,238.58,0.69]
[1758339051588,0.14216157,238.58,238.57,0.69]
[1758339051976,0.14216157,238.58,238.57,14.56991715]
[1758339052187,12.60107109,238.61,238.57,18.76155901]
[1758339052484,12.60107109,238.61,238.58,46.22559401]
[1758339052683,12.60107109,238.61,238.57,4.475965]
[1758339052684,0.14216157,238.58,238.57,31.94]
[1758339052885,34.00241191,238.58,238.57,31.94]
[1758339053087,34.00241191,238.58,238.55,31.96]
[1758339053260,2.11241191,238.56,238.55,31.96]
[1758339053464,2.80241191,238.56,238.55,31.96]
[1758339054267,15.40665954,238.56,238.55,31.96]
[1758339059091,14.71665954,238.56,238.55,31.96]
[1758339059495,12.7464092,238.56,238.55,31.96]
[1758339059874,12.7464092,238.56,238.55,32.68]
[1758339060283,12.7464092,238.56,238.55,31.96]
[1758339060685,0.14216157,238.56,238.55,32.66]
[1758339062181,0.14216157,238.56,238.55,31.96]
[1758339062989,0.14216157,238.56,238.55,50.4475873]
[1758339067495,0.14216157,238.56,238.55,32.66]
[1758339067800,0.14216157,238.56,238.55,31.96]
[1758339067999,12.74587967,238.56,238.55,31.96]
[1758339069676,15.37613001,238.56,238.55,31.96]
[1758339071100,12.74587967,238.56,238.55,31.96]
[1758339074291,12.74587967,238.56,238.55,32.66]
[1758339074698,0.14216157,238.56,238.55,32.66]
[1758339075204,31.34216157,238.56,238.55,31.96]
[1758339077091,31.34216157,238.56,238.55,32.66]
[1758339079586,31.34216157,238.56,238.55,31.96]
[1758339080388,31.34216157,238.56,238.55,32.66]
[1758339080705,0.14216157,238.56,238.55,50.4475873]
[1758339090602,0.14216157,238.56,238.55,50.73191044]
[1758339092410,0.14216157,238.56,238.55,45.55559401]
[1758339092710,0.14216157,238.55,238.51,4.19268115]
[1758339092909,0.14216157,238.53,238.52,45.81991715]
[1758339094225,0.14216157,238.53,238.52,45.53559401]
[1758339096194,0.14216157,238.53,238.52,45.55559401]
[1758339102112,0.14216157,238.54,238.52,45.55559401]
[1758339102417,0.81216157,238.53,238.52,31.96]
[1758339102633,0.14216157,238.53,238.52,31.96]
[1758339103496,0.81216157,238.53,238.52,31.96]
[1758339103910,30.81216157,238.53,238.52,31.96]
[1758339105208,36.97475668,238.53,238.52,31.96]
[1758339105410,32.78241191,238.53,238.52,31.96]
[1758339107826,30.81216157,238.53,238.52,31.96]
[1758339108226,32.07374272,238.53,238.52,31.96]
[1758339108830,31.40374272,238.53,238.52,31.96]
[1758339109606,30.14216157,238.53,238.52,31.96]
[1758339113427,30.14216157,238.53,238.52,32.66]
[1758339117433,0.14216157,238.53,238.52,50.44811455]
[1758339118531,0.14216157,238.53,238.52,51.7096957]
[1758339120035,0.14216157,238.53,238.52,51.99401884]
[1758339120908,0.14216157,238.53,238.52,45.55559401]
[1758339121416,0.14216157,238.53,238.52,46.21559401]
[1758339121633,0.14216157,238.53,238.52,45.55559401]
[1758339121925,0.14216157,238.53,238.52,46.21559401]
[1758339122416,0.14216157,238.53,238.52,45.55559401]
[1758339122735,0.14216157,238.53,238.52,46.21559401]
[1758339123226,0.14216157,238.53,238.52,45.55559401]
[1758339123821,0.14216157,238.53,238.52,46.21559401]
[1758339124837,0.14216157,238.53,238.52,45.55559401]
[1758339125141,32.02216157,238.53,238.52,31.96]
[1758339125659,31.34216157,238.53,238.52,31.96]
[1758339126334,61.34216157,238.53,238.52,31.96]
[1758339126845,61.34216157,238.53,238.52,32.62]
[1758339127533,61.34216157,238.53,238.52,31.96]
[1758339131332,61.34216157,238.53,238.5,4.85286819]
[1758339131537,61.34216157,238.53,238.51,46.19559401]
[1758339133642,61.34216157,238.53,238.52,0.66]
[1758339133643,30.14216157,238.53,238.52,0.66]
[1758339133851,30.14216157,238.53,238.52,14.25559401]
[1758339134845,30.14216157,238.53,238.52,18.44811455]
[1758339135223,0.14216157,238.53,238.52,18.44811455]
[1758339136545,0.14216157,238.53,238.52,18.73243769]
[1758339137846,0.14216157,238.53,238.52,19.99401884]
[1758339139950,12.60318861,238.57,238.53,0.28432314]
[1758339139951,0.14216157,238.56,238.53,0.28432314]
[1758339140137,0.14216157,238.56,238.55,13.59559401]
[1758339140337,0.14216157,238.56,238.55,45.51559401]
[1758339140536,0.14216157,238.56,238.55,46.17559401]
[1758339140756,0.14216157,238.58,238.55,46.17559401]
[1758339140930,15.57089455,238.58,238.55,46.17559401]
[1758339141133,12.74482073,238.58,238.55,46.17559401]
[1758339142651,12.74482073,238.58,238.56,4.19181757]
[1758339142828,12.74482073,238.58,238.57,31.94]
[1758339143034,45.57033945,238.58,238.57,31.94]
[1758339143540,30.14216157,238.58,238.57,32.6]
[1758339143927,30.14216157,238.58,238.57,31.94]
[1758339144354,0.14216157,238.58,238.57,32.6]
[1758339144538,0.14216157,238.58,238.57,31.94]
[1758339144928,0.14216157,238.58,238.57,36.13164186]
[1758339145535,0.14216157,238.58,238.57,36.79164186]
[1758339146451,0.14216157,238.6,238.57,36.79164186]
[1758339146638,0.14216157,238.58,238.57,36.79164186]
[1758339148774,0.14216157,238.58,238.57,31.94]
[1758339149132,37.49520889,238.58,238.53,13.59559401]
[1758339149353,0.14216157,238.54,238.52,13.59559401]
[1758339149655,0.14216157,238.54,238.53,31.92]
[1758339150145,3.66510178,238.54,238.53,31.92]
[1758339150540,34.86510178,238.54,238.5,0.94432314]
[1758339150746,35.56510178,238.54,238.51,31.92]
[1758339152360,34.86510178,238.54,238.51,31.92]
[1758339152541,30.7,238.53,238.51,31.92]
[1758339152948,0.7,238.52,238.51,45.51559401]
[1758339154057,42.60477721,238.53,238.51,45.51559401]
[1758339154363,43.30477721,238.53,238.51,45.51559401]
[1758339156168,42.60477721,238.53,238.51,45.51559401]
[1758339156664,43.30477721,238.53,238.51,45.51559401]
[1758339156863,0.14216157,238.52,238.51,31.92]
[1758339157362,12.74746841,238.52,238.51,31.92]
[1758339157565,13.44746841,238.52,238.51,31.92]
[1758339158060,13.44746841,238.52,238.5,13.59559401]
[1758339158362,13.44746841,238.52,238.51,31.94]
[1758339159063,43.44746841,238.52,238.51,31.94]
[1758339161147,42.74746841,238.52,238.51,31.94]
[1758339168868,42.74746841,238.52,238.49,0.66]
[1758339169074,48.90157871,238.52,238.5,31.92]
[1758339169383,0.84216157,238.51,238.5,31.92]
[1758339169545,43.44905754,238.51,238.5,31.92]
[1758339170073,47.64175386,238.51,238.5,31.92]
[1758339172070,48.91327059,238.51,238.5,31.92]
[1758339172971,49.61327059,238.51,238.5,31.92]
[1758339174371,31.2,238.48,238.46,0.2]
[1758339174568,2.1136783,238.47,238.46,0.2]
[1758339174778,2.8136783,238.47,238.46,0.2]
[1758339174959,15.42322373,238.47,238.46,0.2]
[1758339175655,19.61662331,238.47,238.46,0.2]
[1758339178078,49.61662331,238.47,238.46,0.2]
[1758339179375,44.72322373,238.47,238.46,0.86]
[1758339179569,42.751707,238.47,238.46,0.86]
[1758339179877,42.751707,238.47,238.46,0.2]
[1758339180686,42.751707,238.47,238.46,0.92]
[1758339181079,42.751707,238.47,238.46,0.2]
[1758339182480,42.751707,238.47,238.46,0.92]
[1758339182678,42.751707,238.47,238.46,5.11357544]
[1758339182981,30.14216157,238.47,238.46,5.11357544]
[1758339185182,32.7636783,238.47,238.46,0.2]
[1758339185884,45.37269375,238.47,238.46,0.2]
[1758339190496,43.40117702,238.47,238.46,0.2]
[1758339190791,45.37269375,238.47,238.46,0.2]
[1758339191588,49.56609333,238.47,238.46,0.2]
[1758339191788,84.34094052,238.47,238.46,0.2]
[1758339194870,84.34094052,238.47,238.46,1e-08]
[1758339195077,84.34094052,238.47,238.45,0.2]
[1758339195278,34.92852549,238.46,238.45,0.2]
[1758339195478,39.12210093,238.46,238.45,0.2]
[1758339195784,41.45386847,238.46,238.45,0.2]
[1758339200481,39.48235174,238.46,238.45,0.2]
[1758339200681,73.47386847,238.46,238.45,0.2]
[1758339205093,0.14216157,238.45,238.44,0.05790001]
[1758339205279,35.57852549,238.45,238.44,0.05790001]
[1758339205798,37.26050518,238.45,238.44,0.05790001]
[1758339208903,41.45425649,238.45,238.44,0.05790001]
[1758339209489,39.48273976,238.45,238.44,0.05790001]
[1758339209683,41.45425649,238.45,238.44,0.05790001]
[1758339210206,43.42577322,238.45,238.44,0.05790001]
[1758339211102,41.45425649,238.45,238.44,0.05790001]
[1758339212115,40.80425649,238.45,238.44,0.05790001]
[1758339212309,72.84425649,238.45,238.44,0.05790001]
[1758339212484,72.84425649,238.45,238.44,0.74790001]
[1758339212685,72.84425649,238.45,238.44,0.05790001]
[1758339212906,70.87273976,238.45,238.44,0.74790001]
[1758339213091,72.84425649,238.45,238.44,0.74790001]
[1758339213281,72.84425649,238.45,238.44,0.05790001]
[1758339214617,40.80425649,238.45,238.44,0.05790001]
[1758339214799,72.84425649,238.45,238.44,0.74790001]
[1758339215315,31.68197969,238.45,238.44,0.74790001]
[1758339215519,30.0,238.45,238.44,0.74790001]
[1758339215695,31.97151673,238.45,238.44,0.74790001]
[1758339216012,36.16526804,238.45,238.44,0.74790001]
[1758339216208,67.50742961,238.45,238.44,0.74790001]
[1758339216417,67.36526804,238.45,238.44,0.74790001]
[1758339216588,63.3136783,238.45,238.44,0.74790001]
[1758339217097,67.50742961,238.45,238.44,0.74790001]
[1758339218594,39.8288605,238.45,238.44,0.05790001]
[1758339222192,0.14216157,238.44,238.43,0.2]
[1758339222511,34.92510919,238.44,238.43,0.2]
[1758339222695,67.02510919,238.44,238.43,0.2]
[1758339223503,40.80101607,238.44,238.43,0.2]
[1758339223703,72.90101607,238.44,238.43,0.2]
[1758339224419,40.80101607,238.44,238.43,0.2]
[1758339224608,72.90101607,238.44,238.43,0.2]
[1758339225520,70.92949934,238.44,238.43,0.2]
[1758339225726,72.90101607,238.44,238.43,0.2]
[1758339229916,72.19271922,238.44,238.43,0.2]
[1758339230310,72.19271922,238.44,238.43,0.89]
[1758339230911,72.19764565,238.44,238.43,0.89]
[1758339231113,40.09764565,238.44,238.43,0.89]
[1758339231314,72.19764565,238.44,238.43,0.89]
[1758339233528,40.09764565,238.44,238.43,0.89]
[1758339233828,34.0795772,238.44,238.43,0.89]
[1758339234013,34.22173877,238.44,238.43,0.89]
[1758339234409,32.95851889,238.44,238.43,0.89]
[1758339234805,64.15851889,238.44,238.43,0.89]
[1758339235617,64.01635732,238.44,238.43,0.89]
[1758339235826,64.15851889,238.44,238.43,0.89]
[1758339236007,65.42173877,238.44,238.43,0.89]
[1758339238118,69.61566596,238.44,238.43,0.89]
[1758339241431,65.42173877,238.44,238.43,0.89]
[1758339243222,64.15851889,238.44,238.43,0.89]
[1758339243426,61.34216157,238.44,238.43,0.89]
[1758339243831,64.16361463,238.44,238.43,0.89]
[1758339244235,61.34216157,238.44,238.43,0.89]
[1758339244620,64.16327262,238.44,238.43,0.89]
[1758339245140,68.35719981,238.44,238.43,0.89]
[1758339245339,69.62041969,238.44,238.43,0.2]
[1758339252726,65.4264925,238.44,238.43,0.92]
[1758339252924,64.16327262,238.44,238.43,0.92]
[1758339253347,30.0,238.44,238.43,0.92]
[1758339253524,30.0,238.44,238.43,18.7096971]
[1758339255036,0.14216157,238.47,238.43,18.7096971]
[1758339255245,0.14216157,238.47,238.44,0.72]
[1758339255424,31.34216157,238.47,238.44,0.72]
[1758339255624,3.52044665,238.55,238.47,13.59559401]
[1758339255836,1.26321988,238.53,238.48,0.72]
[1758339256147,0.14216157,238.52,238.48,0.72]
[1758339256445,31.34216157,238.52,238.48,0.72]
[1758339256942,0.14216157,238.5,238.46,0.28432314]
[1758339257252,1.40538145,238.49,238.46,0.72]
[1758339257549,1.40538145,238.49,238.47,0.72]
[1758339258146,1.40538145,238.49,238.45,0.28432314]
[1758339258348,1.40538145,238.49,238.46,0.72]
[1758339258643,1.40538145,238.49,238.47,0.72]
[1758339260053,1.40538145,238.49,238.45,4.47802569]
[1758339260244,31.34216157,238.49,238.48,0.72]
[1758339263324,31.34216157,238.49,238.43,14.51559401]
[1758339263325,0.14216157,238.48,238.43,14.51559401]
[1758339263543,0.14216157,238.46,238.43,14.51559401]
[1758339263749,31.34216157,238.46,238.43,14.51559401]
[1758339265333,31.34216157,238.46,238.43,13.79559401]
[1758339265651,31.34216157,238.46,238.43,14.51559401]
[1758339267244,31.34216157,238.46,238.43,0.92]
[1758339268748,36.2357514,238.46,238.43,0.2]
[1758339268954,0.14216157,238.44,238.43,0.2]
[1758339269427,1.40538145,238.44,238.43,0.2]
[1758339270050,0.14216157,238.44,238.43,0.2]
[1758339271543,6.29930864,238.44,238.43,0.2]
[1758339271854,5.59930864,238.44,238.43,0.2]
[1758339272054,7.28086408,238.44,238.43,0.2]
[1758339272735,33.02371701,238.44,238.43,0.9]
[1758339273555,31.34216157,238.44,238.43,0.9]
[1758339275156,31.34216157,238.44,238.43,0.2]
[1758339275757,31.34216157,238.44,238.43,0.9]
[1758339276142,0.14216157,238.44,238.43,0.9]
[1758339276465,0.14216157,238.44,238.43,5.09410309]
[1758339277277,31.2,238.46,238.43,5.09410309]
[1758339277438,0.14216157,238.45,238.44,0.7]
[1758339279162,31.34216157,238.45,238.44,0.7]
[1758339280061,31.34216157,238.45,238.43,4.39410309]
[1758339280244,0.14216157,238.45,238.43,4.39410309]
[1758339280563,31.34216157,238.45,238.43,0.2]
[1758339280949,31.34216157,238.45,238.43,0.9]
[1758339284763,0.14216157,238.45,238.43,5.09405085]
[1758339284960,31.34216157,238.46,238.43,5.09405085]
[1758339285160,0.14216157,238.46,238.44,0.7]
[1758339285356,4.08359076,238.52,238.46,0.28432314]
[1758339285556,0.14216157,238.51,238.47,0.7]
[1758339285867,31.34216157,238.51,238.47,0.7]
[1758339286071,31.34216157,238.51,238.46,0.28432314]
[1758339286254,31.34216157,238.51,238.48,0.7]
[1758339287870,31.34216157,238.51,238.48,4.19321669]
[1758339288062,31.34216157,238.51,238.49,0.7]
[1758339288258,31.34216157,238.51,238.5,0.7]
[1758339288766,31.34216157,238.51,238.48,4.19321669]
[1758339288964,31.34216157,238.51,238.49,0.7]
[1758339291452,31.34216157,238.51,238.5,0.7]
[1758339291652,0.14216157,238.51,238.5,0.7]
[1758339292853,0.14216157,238.51,238.5,4.89287211]
[1758339295674,0.14216157,238.54,238.5,4.89287211]
[1758339295875,0.14216157,238.52,238.5,4.89287211]
[1758339298380,0.14216157,238.52,238.51,0.72]
[1758339299490,0.14216157,238.52,238.49,18.50864193]
[1758339299703,0.14216157,238.52,238.5,4.91272826]
[1758339300490,2.11356369,238.52,238.5,4.19272826]
[1758339300796,2.11356369,238.52,238.51,0.71]
[1758339300982,2.11356369,238.53,238.51,0.71]
[1758339301297,0.14216157,238.53,238.51,0.71]
[1758339301466,0.14216157,238.53,238.51,13.59559401]
[1758339301801,0.14216157,238.53,238.52,4.90252054]
[1758339305388,0.14216157,238.55,238.52,0.71]
[1758339305596,2.11356369,238.55,238.52,0.71]
[1758339305994,2.11356369,238.55,238.51,13.87991715]
[1758339306174,2.11356369,238.55,238.53,0.71]
[1758339306695,33.31356369,238.55,238.54,4.90216902]
[1758339307282,0.14216157,238.55,238.54,4.90216902]
[1758339307484,0.14216157,238.56,238.54,18.49776303]
[1758339307672,0.14216157,238.56,238.55,0.71]
[1758339309270,0.14216157,238.56,238.55,4.90199329]
[1758339310596,0.14216157,238.57,238.54,18.07208617]
[1758339310781,0.14216157,238.57,238.55,0.71]
[1758339311092,0.14216157,238.57,238.56,0.71]
[1758339312180,0.14216157,238.57,238.56,4.90181757]
[1758339312607,2.11356369,238.57,238.56,4.90181757]
[1758339312781,1.97140212,238.58,238.56,18.49741158]
[1758339313098,1.97140212,238.59,238.57,0.71]
[1758339313322,2.11356369,238.6,238.57,32.75]
[1758339313881,2.11356369,238.6,238.58,4.19146617]